bitfinex/quotes_ETHUSD_20220113
["timestamp","ask_amount","ask_price","bid_price","bid_amount"]
[1642078383872,0.50884853,3365.0,3364.8,1.04304]
[1642078384072,0.00852636,3364.9,3364.8,1.04304]
[1642078384931,0.00852636,3364.9,3364.8,3.98015415]
[1642078385124,0.00852636,3364.9,3364.8,4.98015415]
[1642078385325,0.00852636,3364.9,3364.8,5.01437547]
[1642078385526,0.00852636,3364.9,3364.8,2.34304]
[1642078387234,0.00852636,3364.9,3364.8,5.03678413]
[1642078387430,0.00852636,3364.9,3364.8,5.00286793]
[1642078387634,0.00852636,3364.9,3364.8,5.04241128]
[1642078388668,0.00852636,3364.9,3364.8,3.12551335]
[1642078388868,0.00852636,3364.9,3364.8,4.99791467]
[1642078389471,0.00852636,3364.9,3364.8,7.64791467]
[1642078389676,0.00852636,3364.9,3364.8,4.99791467]
[1642078390269,0.00852636,3364.9,3364.8,7.55273796]
[1642078393625,0.49975375,3365.6,3364.9,3.16705272]
[1642078393825,0.49975375,3365.6,3365.2,0.74286]
[1642078394023,0.00341054,3365.5,3365.3,0.6714289]
[1642078394222,0.00341054,3365.5,3365.4,1.50255383]
[1642078394423,0.49975375,3365.6,3365.4,1.50255383]
[1642078394625,0.49975375,3365.6,3365.4,1.80255383]
[1642078396028,0.426,3366.0,3365.4,1.80255383]
[1642078396271,0.426,3366.0,3365.4,1.30280008]
[1642078396471,0.00568423,3365.9,3365.4,1.30280008]
[1642078396672,0.43168423,3365.9,3365.4,1.30280008]
[1642078396873,0.00511581,3365.8,3365.5,0.3]
[1642078397375,0.426,3365.9,3365.5,0.3]
[1642078397376,0.00454738,3365.7,3365.5,0.2982166]
[1642078397774,0.00397896,3365.6,3365.5,0.2982166]
[1642078398173,0.30119111,3365.6,3365.5,0.2982166]
[1642078398575,0.00397896,3365.6,3365.4,1.28793793]
[1642078398975,3.00692481,3366.2,3365.4,1.58793793]
[1642078398976,0.00341054,3365.5,3365.4,1.58793793]
[1642078399778,0.00341054,3365.5,3365.1,0.3714783]
[1642078400025,0.00341054,3365.5,3364.5,3.9574]
[1642078400026,0.03314195,3365.4,3364.5,3.9574]
[1642078400224,0.03314195,3365.4,3364.6,3.83204235]
[1642078400225,0.426,3365.3,3364.6,3.83204235]
[1642078400422,0.42827369,3365.3,3364.6,3.83374762]
[1642078400626,0.00170527,3365.2,3364.6,3.83374762]
[1642078400827,0.426,3365.1,3364.6,3.83374762]
[1642078401025,0.42713684,3365.1,3364.6,3.83374762]
[1642078401227,0.74318,3365.0,3364.6,4.13374762]
[1642078401430,0.42713684,3365.1,3364.6,2.85669415]
[1642078401431,0.00113684,3365.1,3364.6,2.85669415]
[1642078401627,0.00113684,3365.1,3364.7,1.0]
[1642078401931,0.00113684,3365.1,3364.7,1.3]
[1642078402125,0.00113684,3365.1,3364.8,1.93524244]
[1642078402927,0.00113684,3365.1,3364.8,2.30673284]
[1642078404171,0.00113684,3365.1,3364.9,2.85498888]
[1642078404371,0.00113684,3365.1,3364.9,3.59795888]
[1642078404571,0.00113684,3365.1,3364.9,3.89795888]
[1642078405174,0.00113684,3365.1,3365.0,2.55498888]
[1642078407542,0.00113684,3365.1,3364.9,0.6]
[1642078407734,0.00113684,3365.1,3364.9,1.04297]
[1642078407936,0.00113684,3365.1,3364.9,0.74297]
[1642078408135,0.00113684,3365.1,3364.9,1.74297]
[1642078408336,0.00113684,3365.1,3364.9,0.74297]
[1642078408535,5.59060384,3365.1,3364.9,1.74297]
[1642078409337,5.59060384,3365.1,3364.9,0.74297]
[1642078409536,5.59060384,3365.1,3364.9,1.74297]
[1642078411372,8.59060384,3365.1,3364.9,1.74297]
[1642078411576,8.59060384,3365.1,3364.8,1.49222244]
[1642078411577,0.02819934,3365.0,3364.8,1.49222244]
[1642078411775,0.02819934,3365.0,3364.8,0.3]
[1642078411975,9.01660384,3365.1,3364.8,0.3]
[1642078412175,0.02775414,3364.9,3364.5,4.50910527]
[1642078412373,0.00227369,3365.0,3364.5,4.50910527]
[1642078412572,0.00113684,3364.8,3364.5,4.50910527]
[1642078412773,0.00170527,3364.9,3364.5,3.9574]
[1642078412978,1.34375598,3364.8,3364.5,3.9574]
[1642078413172,1.34489282,3364.8,3364.5,3.9574]
[1642078413373,1.34375598,3364.8,3364.5,3.9574]
[1642078414775,0.74317,3364.9,3364.5,3.9574]
[1642078415015,0.00227369,3365.0,3364.5,3.9574]
[1642078415216,0.00113684,3364.8,3364.5,3.9574]
[1642078415417,0.00170527,3364.9,3364.5,3.9574]
[1642078415620,9.758587,3365.1,3364.5,3.9574]
[1642078415621,9.72127523,3365.1,3364.5,3.9574]
[1642078415817,9.72127523,3365.1,3364.6,0.00227369]
[1642078416016,10.91215068,3365.1,3364.6,0.00227369]
[1642078417221,9.72127523,3365.1,3364.6,0.00227369]
[1642078418227,9.72127523,3365.1,3364.6,2.55719259]
[1642078418674,9.72127523,3365.1,3364.7,0.00170527]
[1642078418675,11.22412801,3365.1,3364.7,0.00170527]
[1642078422415,9.72127523,3365.1,3364.7,0.00170527]
[1642078423921,8.97815523,3365.1,3364.7,0.00170527]
[1642078424523,8.97815523,3365.1,3365.0,1.3794496]
[1642078425528,9.72126523,3365.1,3365.0,1.3794496]
[1642078426030,9.72126523,3365.1,3364.7,0.00170527]
[1642078426879,9.72126523,3365.1,3364.8,0.3]
[1642078427778,2.88150087,3365.0,3364.8,0.3]
[1642078427979,3.62466087,3365.0,3364.8,0.3]
[1642078428582,3.62466087,3365.0,3364.9,2.55488934]
[1642078428780,2.22618195,3365.0,3364.9,2.55488934]
[1642078429180,0.74316,3365.0,3364.9,2.55488934]
[1642078429781,1.16916,3365.0,3364.9,2.55488934]
[1642078430632,2.35530089,3365.0,3364.9,2.55488934]
[1642078431233,2.35530089,3365.0,3364.7,0.00170527]
[1642078438319,0.74323,3364.8,3364.7,0.00170527]
[1642078438519,4.71923,3364.8,3364.7,0.00170527]
[1642078438720,1.16923,3364.8,3364.7,0.00170527]
[1642078438923,3.91923,3364.8,3364.7,0.00170527]
[1642078439125,3.91923,3364.8,3364.5,0.00284212]
[1642078439723,3.91923,3364.8,3364.5,2.55488934]
[1642078440527,1.22045056,3364.7,3364.3,2.85488934]
[1642078440730,0.426,3364.6,3364.3,2.85488934]
[1642078440927,0.426,3364.6,3364.4,0.00341054]
[1642078442081,0.426,3364.6,3364.2,0.00454739]
[1642078443281,1.16813952,3364.4,3364.2,0.00454739]
[1642078444919,4.776,3364.3,3364.2,0.00454739]
[1642078445318,0.426,3364.3,3364.1,0.30511581]
[1642078445518,0.426,3364.3,3364.2,0.00454739]
[1642078445922,0.426,3364.3,3364.1,0.30511581]
[1642078446123,0.426,3364.3,3364.1,0.00511581]
[1642078446324,0.426,3364.3,3364.2,0.00454739]
[1642078446524,0.426,3364.3,3364.1,0.30511581]
[1642078446724,0.426,3364.3,3364.1,0.00511581]
[1642078447027,0.426,3364.3,3364.0,0.6]
[1642078447028,0.49534838,3364.1,3364.0,0.6]
[1642078447225,0.92134838,3364.1,3364.0,0.6]
[1642078447525,0.426,3364.1,3364.0,0.30113684]
[1642078448526,0.426,3364.1,3364.0,0.00113684]
[1642078448967,0.49980862,3364.0,3363.5,0.00397896]
[1642078449169,0.426,3363.9,3363.5,0.00397896]
[1642078449868,0.426,3363.9,3363.5,1.47441353]
[1642078450268,0.426,3363.9,3363.6,0.00341054]
[1642078451275,0.426,3363.9,3363.2,3.9436]
[1642078451276,0.49639808,3363.5,3363.2,3.9436]
[1642078451474,0.49639808,3363.5,3363.3,0.00170527]
[1642078451873,0.426,3363.7,3363.3,0.00170527]
[1642078452277,1.42978316,3363.6,3363.3,0.00170527]
[1642078452717,1.42978316,3363.6,3363.3,0.74511527]
[1642078453119,0.426,3363.7,3363.4,0.30113685]
[1642078453322,0.19883006,3363.3,3363.2,4.3152842]
[1642078453721,0.00113685,3363.6,3363.4,0.74337]
[1642078453922,0.00113685,3363.6,3363.2,3.94473684]
[1642078454927,0.00113685,3363.6,3363.4,0.74337]
[1642078455322,0.00113685,3363.6,3363.4,1.04337]
[1642078455522,0.49980052,3363.5,3363.4,1.04337]
[1642078456584,0.00113685,3363.6,3363.4,1.04337]
[1642078456983,0.00113685,3363.6,3363.4,0.54356948]
[1642078457686,0.00113685,3363.6,3363.4,2.80166114]
[1642078458087,0.00113685,3363.6,3363.4,0.24618498]
[1642078458287,0.20250981,3363.5,3363.4,0.24618498]
[1642078458688,0.20250981,3363.5,3363.4,0.98955498]
[1642078458888,0.00113685,3363.6,3363.5,2.55547616]
[1642078459918,0.00113685,3363.6,3363.5,2.05559511]
[1642078460318,0.00113685,3363.6,3363.5,1.66871513]
[1642078460719,0.00113685,3363.6,3363.5,1.55571406]
[1642078462328,0.00113685,3363.6,3363.5,1.16883408]
[1642078462928,0.41150474,3363.6,3363.5,1.16883408]
[1642078463527,0.00113685,3363.6,3363.5,1.16883408]
[1642078464565,5.59060385,3363.6,3363.5,1.16883408]
[1642078464767,5.59060385,3363.6,3363.5,2.99919652]
[1642078464968,5.59060385,3363.6,3363.5,3.05297722]
[1642078466066,5.59060385,3363.6,3363.5,1.2041677]
[1642078466269,5.59060385,3363.6,3363.5,3.07637461]
[1642078466669,5.59060385,3363.6,3363.5,3.07134095]
[1642078467515,5.59060385,3363.6,3363.5,1.2041677]
[1642078467715,5.59060385,3363.6,3363.5,3.05515105]
[1642078468717,5.59060385,3363.6,3363.5,1.2041677]
[1642078469417,5.59060385,3363.6,3363.5,3.12620318]
[1642078469617,2.18961108,3363.6,3363.5,9.17620318]
[1642078469818,3.0,3363.9,3363.6,6.7]
[1642078470019,3.0,3363.9,3363.8,4.0]
[1642078470217,3.0,3363.9,3363.8,4.73374633]
[1642078470524,3.0,3363.9,3363.8,5.03374633]
[1642078470719,3.0,3363.9,3363.8,6.03374633]
[1642078470918,3.0,3363.9,3363.8,7.55436499]
[1642078471572,1.53690156,3364.8,3364.1,0.58765267]
[1642078471772,0.426,3365.0,3364.4,1.1146873]
[1642078471972,0.426,3365.0,3364.5,0.3]
[1642078472772,1.7518087,3365.0,3364.6,0.74316]
[1642078472972,1.7518087,3365.0,3364.6,1.8577798]
[1642078473175,0.426,3365.0,3364.8,0.3]
[1642078473574,0.426,3365.0,3364.6,0.6715398]
[1642078473974,0.426,3365.0,3364.7,0.74309]
[1642078474177,0.426,3365.0,3364.8,0.74309]
[1642078474374,0.426,3365.0,3364.8,1.04309]
[1642078475617,0.426,3365.0,3364.8,1.414599]
[1642078477728,5.55215523,3365.1,3364.9,1.9622057]
[1642078478025,0.00795793,3365.0,3364.9,0.78260892]
[1642078478226,0.00795793,3365.0,3364.9,1.78260892]
[1642078478427,0.00795793,3365.0,3364.9,0.78260892]
[1642078478673,0.00795793,3365.0,3364.9,1.78260892]
[1642078479271,0.00795793,3365.0,3364.9,1.74297]
[1642078481978,3.00795793,3365.0,3364.9,1.74297]
[1642078482718,3.00795793,3365.0,3364.9,1.78261904]
[1642078482922,3.00795793,3365.0,3364.9,4.29740517]
[1642078483522,4.5145365,3365.0,3364.9,4.29740517]
[1642078484724,3.00795793,3365.0,3364.9,4.29740517]
[1642078485124,3.00795793,3365.0,3364.9,3.29740517]
[1642078486980,3.00795793,3365.0,3364.9,3.59740517]
[1642078487581,3.00795793,3365.0,3364.9,4.89740517]
[1642078488680,3.00795793,3365.0,3364.9,6.72060238]
[1642078489680,3.00795793,3365.0,3364.9,4.89740517]
[1642078490121,3.00795793,3365.0,3364.9,2.34297]
[1642078490320,3.00795793,3365.0,3364.9,3.16540125]
[1642078490524,3.00795793,3365.0,3364.9,4.16540125]
[1642078490721,3.00795793,3365.0,3364.9,2.34297]
[1642078491122,3.00795793,3365.0,3364.9,4.1781821]
[1642078491326,3.00795793,3365.0,3364.9,6.73249406]
[1642078492627,3.00795793,3365.0,3364.9,4.89728196]
[1642078496287,3.00795793,3365.0,3364.9,6.76746982]
[1642078499534,3.00795793,3365.0,3364.9,6.72049624]
[1642078499735,3.00795793,3365.0,3364.9,6.71825496]
[1642078500135,3.00795793,3365.0,3364.9,4.89728196]
[1642078503473,3.00795793,3365.0,3364.9,3.89728196]
[1642078503675,4.97468951,3365.0,3364.9,3.29728196]
[1642078503876,5.40068951,3365.0,3364.9,2.55431196]
[1642078504076,3.43395793,3365.0,3364.9,2.55431196]
[1642078504274,10.13395793,3365.0,3364.9,2.05431497]
[1642078504476,3.43395793,3365.0,3364.9,2.05431497]
[1642078504936,3.43395793,3365.0,3364.9,1.75696584]
[1642078505137,3.7700714,3365.0,3364.9,1.75696584]
[1642078505438,6.9200714,3365.0,3364.9,1.75696584]
[1642078505838,0.74326,3364.6,3364.1,3.83146794]
[1642078506040,1.49643187,3364.4,3364.2,0.74327]
[1642078506246,1.92243187,3364.4,3364.2,0.74327]
[1642078506443,0.00397897,3364.3,3364.2,0.74327]
[1642078506843,0.00397897,3364.3,3364.2,1.04327]
[1642078507043,0.00397897,3364.3,3364.2,0.24347633]
[1642078507443,1.8491442,3364.3,3364.2,0.24347633]
[1642078507645,0.00397897,3364.3,3364.2,0.24347633]
[1642078508045,0.05386396,3364.2,3364.1,2.08645]
[1642078508446,0.00341054,3364.2,3364.1,2.08645]
[1642078508687,0.00341054,3364.2,3364.1,3.30827138]
[1642078509377,0.00341054,3364.2,3364.1,3.34247946]
[1642078510179,0.426,3364.4,3364.2,0.3715729]
[1642078510478,0.426,3364.4,3364.3,0.3]
[1642078510678,0.92584125,3364.4,3364.3,0.3]
[1642078510878,0.9269781,3364.4,3364.3,0.3]
[1642078512619,3.9269781,3364.4,3364.3,0.3]
[1642078514623,5.5181072,3364.4,3364.2,1.34317]
[1642078514822,2.01610782,3364.3,3364.2,1.34317]
[1642078515025,2.94194907,3364.3,3364.2,1.34317]
[1642078515428,2.23816909,3364.1,3363.9,1.45669628]
[1642078515628,7.12379338,3364.0,3363.6,2.20012628]
[1642078515835,0.49984125,3363.9,3363.6,1.45669628]
[1642078516032,2.32536808,3363.8,3363.6,1.45669628]
[1642078516303,1.85875533,3363.7,3363.6,1.45669628]
[1642078516502,1.16948,3363.7,3363.6,1.45669628]
[1642078516703,1.16948,3363.7,3363.6,0.96026557]
[1642078517304,1.16948,3363.7,3363.6,1.18816434]
[1642078517506,1.16948,3363.7,3363.6,0.60341054]
[1642078517807,1.16948,3363.7,3363.6,0.30341054]
[1642078518004,1.16948,3363.7,3363.6,0.00341054]
[1642078518206,0.29398723,3363.6,3363.5,0.3]
[1642078518404,2.07972363,3363.6,3363.4,1.04347]
[1642078518706,1.7857364,3363.6,3363.4,1.04347]
[1642078519304,1.7857364,3363.6,3363.4,1.34347]
[1642078519920,2.96516167,3363.6,3363.4,1.34347]
[1642078520121,1.16272939,3363.5,3363.4,0.6]
[1642078520324,1.58872939,3363.5,3363.4,0.3]
[1642078520522,0.426,3363.5,3363.4,0.30113685]
[1642078520722,0.19864968,3363.4,3363.2,0.6]
[1642078520924,0.19864968,3363.4,3363.2,0.3]
[1642078521128,0.426,3363.5,3363.2,0.3]
[1642078521327,0.426,3363.5,3363.0,1.78696]
[1642078521827,0.426,3363.5,3363.1,0.00170527]
[1642078522227,0.426,3363.5,3363.3,0.74346]
[1642078522426,1.16946,3363.5,3363.3,0.74346]
[1642078522627,1.16946,3363.5,3363.4,0.3]
[1642078523027,0.49991362,3363.3,3363.1,0.30170527]
[1642078523427,3.426,3363.5,3363.2,0.74460684]
[1642078523684,3.426,3363.5,3363.2,1.04460684]
[1642078523882,4.16947,3363.5,3363.2,0.54469322]
[1642078524284,5.65333558,3363.5,3363.2,0.54469322]
[1642078524482,5.65333558,3363.5,3363.2,0.24461887]
[1642078524886,5.65333558,3363.5,3363.2,0.04476757]
[1642078525491,0.2807435,3363.3,3363.2,0.04476757]
[1642078525985,3.426,3363.5,3363.2,0.04476757]
[1642078526388,0.4999224,3363.3,3363.2,0.34476757]
[1642078526590,0.4499224,3363.3,3363.2,0.34476757]
[1642078526789,0.4499224,3363.3,3363.2,2.89992678]
[1642078526992,3.426,3363.5,3363.2,2.89992678]
[1642078527190,3.426,3363.5,3363.2,4.01503568]
[1642078527432,3.0,3363.5,3363.3,0.74336]
[1642078527623,3.0,3363.5,3363.4,0.3]
[1642078528424,3.49988448,3363.5,3363.4,0.3]
[1642078528830,3.49988448,3363.5,3363.4,1.3]
[1642078529026,3.49988448,3363.5,3363.4,3.85515921]
[1642078535226,3.0,3363.5,3363.4,3.85515921]
[1642078535623,3.0,3363.5,3363.4,3.65527473]
[1642078538776,3.0,3363.5,3363.4,2.85515921]
[1642078539980,3.0,3363.5,3363.4,2.35529162]
[1642078540477,3.0,3363.5,3363.4,2.05523065]
[1642078541282,3.0,3363.5,3363.4,2.35523065]
[1642078541485,3.0,3363.5,3363.4,2.05523065]
[1642078542084,3.0,3363.5,3363.4,1.75516969]
[1642078542523,3.0,3363.5,3363.4,1.55532891]
[1642078543123,3.0,3363.5,3363.4,1.36560041]
[1642078543323,3.0,3363.5,3363.4,1.66560041]
[1642078543728,3.31016281,3363.5,3363.4,1.66560041]
[1642078543923,4.83161389,3363.5,3363.4,1.66560041]
[1642078544325,4.52145108,3363.5,3363.4,1.66560041]
[1642078544526,5.02133956,3363.5,3363.4,1.66560041]
[1642078545625,5.02133956,3363.5,3363.4,1.69952017]
[1642078545825,5.02133956,3363.5,3363.4,1.39952017]
[1642078546482,3.49988848,3363.5,3363.4,1.39952017]
[1642078546881,3.49988848,3363.5,3363.4,1.69952017]
[1642078547983,3.0,3363.5,3363.4,1.69952017]
[1642078548382,3.0,3363.5,3363.4,1.19963169]
[1642078548581,3.0,3363.5,3363.4,1.23195318]
[1642078548981,3.0,3363.5,3363.4,1.19805034]
[1642078549183,3.0,3363.5,3363.4,3.23008164]
[1642078549682,3.0,3363.5,3363.4,4.23008164]
[1642078550129,3.0,3363.5,3363.4,4.19143956]
[1642078550532,0.49976959,3364.3,3363.5,5.3]
[1642078550730,0.49976959,3364.3,3363.4,4.49143956]
[1642078550731,3.1648,3364.4,3363.6,2.53858024]
[1642078550931,0.00284212,3363.9,3363.6,2.53858024]
[1642078551133,0.00284212,3363.9,3363.8,4.5931]
[1642078551336,0.49976959,3364.7,3363.8,4.5931]
[1642078551337,0.49976959,3364.7,3363.8,6.68098676]
[1642078551535,1.98601959,3364.7,3363.8,8.42408676]
[1642078551735,0.00682109,3364.6,3363.9,1.0]
[1642078551935,0.00682109,3364.6,3364.0,1.99271608]
[1642078552135,0.00625266,3364.5,3364.0,3.45109754]
[1642078552534,0.00568424,3364.4,3364.1,1.0]
[1642078552736,0.00568424,3364.4,3364.2,1.83183856]
[1642078552936,0.00511582,3364.3,3364.2,1.83183856]
[1642078553134,0.00511582,3364.3,3364.2,2.96683509]
[1642078553536,0.00511582,3364.3,3364.2,3.96683509]
[1642078553991,0.00511582,3364.3,3364.2,3.59337799]
[1642078554190,3.00511582,3364.3,3364.2,1.45838146]
[1642078554387,3.30511582,3364.3,3364.2,1.45838146]
[1642078554787,3.80488541,3364.3,3364.2,1.45838146]
[1642078554987,3.80488541,3364.3,3363.9,1.45838146]
[1642078555187,0.74325,3364.2,3363.9,1.45838146]
[1642078555386,0.74779739,3364.2,3363.9,1.45838146]
[1642078555588,1.50120397,3364.1,3363.9,1.45838146]
[1642078555787,0.3,3364.0,3363.9,1.45838146]
[1642078555986,0.00341055,3364.0,3363.9,1.45838146]
[1642078556187,0.74322,3363.9,3363.7,3.64966679]
[1642078556390,0.74322,3363.9,3363.8,1.83402183]
[1642078556593,0.0022737,3363.8,3363.7,2.64966679]
[1642078556794,0.00284212,3363.9,3363.7,4.5515215]
[1642078556991,0.0022737,3363.8,3363.7,2.64966679]
[1642078557436,0.0022737,3363.8,3363.7,1.19128533]
[1642078558029,0.3022737,3363.8,3363.7,1.19128533]
[1642078558428,0.3022737,3363.8,3363.6,2.17879456]
[1642078558831,0.00170527,3363.7,3363.6,2.17879456]
[1642078559832,0.00170527,3363.7,3363.6,3.51940954]
[1642078560632,0.00170527,3363.7,3363.6,5.46419766]
[1642078563092,0.7432947,3363.9,3363.6,3.51940954]
[1642078564492,0.7432947,3363.9,3363.6,2.17879456]
[1642078564937,0.7432947,3363.9,3363.4,2.17879456]
[1642078565131,1.4865947,3363.9,3363.4,2.17879456]
[1642078565332,1.4865947,3363.9,3363.5,0.00113684]
[1642078565533,1.4865947,3363.9,3363.6,1.38453589]
[1642078567540,2.88569176,3363.9,3363.5,0.00113684]
[1642078569889,4.14372613,3363.9,3363.5,0.00113684]
[1642078570487,3.40042613,3363.9,3363.5,0.00113684]
[1642078570787,2.65713143,3363.9,3363.5,2.55586199]
[1642078570987,1.39909706,3363.9,3363.5,2.55586199]
[1642078571395,0.49976959,3364.0,3363.5,2.55586199]
[1642078571593,0.49976959,3364.0,3363.5,4.73465655]
[1642078571793,0.00113685,3363.9,3363.5,4.73465655]
[1642078573132,0.00113685,3363.9,3363.8,1.4712227]
[1642078575236,0.00113685,3363.9,3363.7,1.4712227]
[1642078576180,0.00113685,3363.9,3363.8,1.4712227]
[1642078576983,0.00113685,3363.9,3363.8,4.02594785]
[1642078577783,0.00113685,3363.9,3363.7,1.4712227]
[1642078578384,0.00113685,3363.9,3363.8,2.55472515]
[1642078579184,0.00113685,3363.9,3363.8,1.4712227]
[1642078580058,0.00113685,3363.9,3363.7,1.4712227]
[1642078580651,0.00113685,3363.9,3363.8,2.55472515]
[1642078580851,0.00113685,3363.9,3363.8,4.02594785]
[1642078581657,0.00113685,3363.9,3363.8,1.4712227]
[1642078582663,0.00113685,3363.9,3363.8,2.55472515]
[1642078582860,0.00113685,3363.9,3363.8,4.52454873]
[1642078583259,0.00113685,3363.9,3363.8,3.44104628]
[1642078583887,0.00113685,3363.9,3363.8,3.74104628]
[1642078584284,0.00113685,3363.9,3363.8,7.37454873]
[1642078584485,0.00113685,3363.9,3363.8,8.86071873]
[1642078584684,0.49976959,3364.6,3363.9,2.95]
[1642078584886,0.49976959,3364.6,3364.0,2.63870377]
[1642078585085,0.00170527,3364.2,3364.0,2.63870377]
[1642078585486,0.00113685,3364.1,3364.0,2.63870377]
[1642078585887,0.59428525,3364.5,3364.0,2.63870377]
[1642078586290,0.00170527,3364.4,3364.0,5.19342892]
[1642078586690,0.00113685,3364.3,3364.0,5.19342892]
[1642078586892,0.00113685,3364.3,3364.2,1.46844569]
[1642078588745,0.00113685,3364.3,3364.1,2.55472515]
[1642078588746,0.00113685,3364.3,3364.1,4.02317084]
[1642078589545,0.00113685,3364.3,3364.2,2.55472515]
[1642078591391,0.00113685,3364.3,3364.1,4.02317084]
[1642078592190,0.00113685,3364.3,3364.2,2.55472515]
[1642078592791,0.00113685,3364.3,3364.1,4.02317084]
[1642078593392,0.42713685,3364.3,3364.1,3.52340125]
[1642078593590,1.17046835,3364.3,3364.1,2.55472515]
[1642078593789,1.17046835,3364.3,3364.2,2.55472515]
[1642078593790,1.91375835,3364.3,3364.2,2.55472515]
[1642078593989,10.17062202,3364.3,3364.2,2.05486639]
[1642078594390,8.68883296,3364.3,3364.2,1.75749958]
[1642078594791,8.68883296,3364.3,3364.2,0.15929958]
[1642078595035,0.74343,3363.9,3363.6,2.20307055]
[1642078595236,0.74345,3363.8,3363.6,2.20307055]
[1642078595433,3.226,3363.7,3363.6,2.20307055]
[1642078595839,3.226,3363.7,3363.6,1.70603905]
[1642078596036,3.08959534,3363.7,3363.6,0.00284212]
[1642078596439,0.49993309,3363.6,3363.3,0.00454739]
[1642078596640,0.426,3363.5,3363.3,0.00454739]
[1642078596840,1.16942,3363.5,3363.3,0.00454739]
[1642078597240,0.4953857,3363.3,3363.0,1.40912933]
[1642078597640,0.4953857,3363.3,3363.1,0.00113685]
[1642078597844,0.74346,3363.4,3363.1,0.00113685]
[1642078598144,1.48692,3363.4,3363.1,0.00113685]
[1642078598542,0.7434584,3363.3,3363.1,0.00113685]
[1642078599185,0.49984673,3363.2,3363.1,0.00113685]
[1642078600690,0.743393,3363.4,3363.1,0.00113685]
[1642078600894,0.426,3363.5,3363.1,0.00113685]
[1642078601089,0.49984673,3363.3,3363.1,0.00113685]
[1642078602938,0.49984673,3363.3,3363.1,1.47139368]
[1642078603740,0.49984673,3363.3,3363.1,0.00113685]
[1642078604840,0.49984673,3363.3,3363.1,1.47139368]
[1642078605242,0.49984673,3363.3,3363.1,0.00113685]
[1642078605440,3.49984673,3363.3,3363.1,0.00113685]
[1642078605638,3.0,3363.3,3363.1,0.00113685]
[1642078606507,3.0,3363.3,3363.1,1.47139368]
[1642078607508,3.0,3363.3,3363.1,2.47139368]
[1642078608507,3.0,3363.3,3363.2,1.84103019]
[1642078608911,0.49984673,3363.6,3363.2,1.84103019]
[1642078609108,0.49984673,3363.6,3363.3,0.74331]
[1642078609309,0.00113685,3363.5,3363.3,0.74331]
[1642078610333,0.00113685,3363.5,3363.3,2.21356683]
[1642078610540,0.00113685,3363.5,3363.3,3.21356683]
[1642078611239,0.40098358,3363.6,3363.3,3.21356683]
[1642078611639,0.74331,3364.0,3363.3,3.21356683]
[1642078612040,0.00170527,3363.8,3363.3,3.95682683]
[1642078612340,0.00113684,3363.7,3363.3,3.95682683]
[1642078612740,0.00284212,3364.0,3363.3,3.95682683]
[1642078612942,0.49971083,3363.8,3363.3,2.48657]
[1642078613340,0.00113684,3363.7,3363.3,2.48657]
[1642078613989,0.00113684,3363.7,3363.3,3.95682683]
[1642078614188,0.00113684,3363.7,3363.3,3.21356683]
[1642078614787,0.50084767,3363.7,3363.3,3.21356683]
[1642078615690,0.50084767,3363.7,3363.4,3.29800345]
[1642078615893,0.50084767,3363.7,3363.5,3.24243987]
[1642078616092,0.00113684,3363.7,3363.6,7.63163265]
[1642078616497,0.00113684,3363.7,3363.6,8.63163265]
[1642078617735,0.00113684,3363.7,3363.6,8.39214186]
[1642078618737,0.00113684,3363.7,3363.6,6.1863661]
[1642078620138,0.00113684,3363.7,3363.6,8.7863661]
[1642078620540,3.684e-05,3363.7,3363.6,8.7863661]
[1642078620743,3.684e-05,3363.7,3363.6,26.35371187]
[1642078621184,1.1861,3365.0,3364.1,0.3714991]
[1642078621390,0.49971083,3364.7,3364.5,0.743]
[1642078621793,0.49971083,3364.7,3364.6,1.32612921]
[1642078622190,0.50539507,3364.7,3364.6,1.32612921]
[1642078622389,0.00568424,3364.7,3364.6,3.88086266]
[1642078622589,0.00568424,3364.7,3364.6,4.88086266]
[1642078623891,0.00568424,3364.7,3364.6,6.75098863]
[1642078624294,0.00568424,3364.7,3364.6,4.88086266]
[1642078625437,0.00568424,3364.7,3364.6,6.75509578]
[1642078625638,0.00568424,3364.7,3364.6,4.88086266]
[1642078626646,0.00568424,3364.7,3364.6,7.38698143]
[1642078626849,0.00568424,3364.7,3364.6,12.23698143]
[1642078627244,0.00568424,3364.7,3364.6,13.38518143]
[1642078627445,0.00568424,3364.7,3364.6,12.23698143]
[1642078627647,10.7262,3366.1,3364.6,12.23698143]
[1642078627845,4.9012,3366.1,3365.8,1.96005169]
[1642078628048,9.1164,3366.3,3365.8,1.96005169]
[1642078628049,6.02,3366.3,3365.8,1.96005169]
[1642078628246,0.7428025,3366.4,3365.8,1.96005169]
[1642078628449,0.00852635,3366.2,3365.8,1.46034086]
[1642078628895,0.00795793,3366.1,3365.8,1.46034086]
[1642078629296,0.0073895,3366.0,3365.9,1.11113054]
[1642078629498,0.0073895,3366.0,3365.9,0.61126427]
[1642078629698,0.0073895,3366.0,3365.9,3.80964835]
[1642078629897,0.0073895,3366.0,3365.9,8.05964835]
[1642078630097,0.0073895,3366.0,3365.9,6.16126427]
[1642078630496,0.0073895,3366.0,3365.9,8.71599772]
[1642078631303,0.0073895,3366.0,3365.9,9.45864772]
[1642078631502,0.0433,3366.9,3365.9,5.20864772]
[1642078631700,0.0433,3366.9,3366.3,0.74259]
[1642078631901,0.00454739,3366.8,3366.3,0.74259]
[1642078632305,0.0433,3366.9,3366.3,0.74259]
[1642078632306,0.49999389,3366.6,3366.3,0.74259]
[1642078632536,0.44999389,3366.6,3366.4,0.74255]
[1642078632740,0.00284212,3366.5,3366.4,0.74255]
[1642078633840,0.00284212,3366.5,3366.4,1.04255]
[1642078634238,0.00284212,3366.5,3366.4,2.04255]
[1642078634437,0.00284212,3366.5,3366.4,1.04255]
[1642078634646,0.00284212,3366.5,3366.4,1.74255]
[1642078634840,0.00284212,3366.5,3366.4,1.0]
[1642078635043,0.00284212,3366.5,3366.3,1.48513]
[1642078635440,0.0022737,3366.4,3366.3,2.48513]
[1642078635642,0.0022737,3366.4,3366.3,4.34828007]
[1642078635842,0.0022737,3366.4,3366.3,2.48513]
[1642078637095,0.0022737,3366.4,3366.3,2.78513]
[1642078637894,0.0022737,3366.4,3366.3,4.74355416]
[1642078638299,0.0022737,3366.4,3366.3,2.78513]
[1642078638600,0.0433,3366.9,3366.6,2.63513151]
[1642078638798,0.0433,3366.9,3366.7,0.3]
[1642078639000,0.00227369,3366.8,3366.7,1.6]
[1642078639701,0.00227369,3366.8,3366.7,0.6]
[1642078639956,0.00227369,3366.8,3366.7,1.6]
[1642078640349,0.00227369,3366.8,3366.7,0.6]